bitfinex-derivatives/quotes_SOLF0:USTF0_20250307
["timestamp","ask_amount","ask_price","bid_price","bid_amount"]
[1741371733597,42.15437512,144.97,144.9,3.8098]
[1741371733794,42.15437512,144.94,144.84,3.8098]
[1741371733995,42.15437512,144.94,144.92,0.052633]
[1741371734186,42.15437512,144.94,144.84,44.8587]
[1741371734497,0.04586174,144.92,144.91,6.9006]
[1741371734701,39.8986,144.96,144.91,6.9006]
[1741371734997,0.04964648,144.93,144.91,6.9002]
[1741371735295,0.04964648,144.93,144.9,0.04516835]
[1741371735597,33.0,145.0,144.9,0.04516835]
[1741371735995,33.0,145.0,144.88,33.0]
[1741371736190,42.15437512,144.98,144.88,33.0]
[1741371736501,42.15437512,144.95,144.88,33.0]
[1741371736892,42.15437512,144.95,144.9,0.04608296]
[1741371736893,0.04677611,144.93,144.9,0.04608296]
[1741371737295,0.04677611,144.93,144.92,6.9002]
[1741371737495,0.04677611,144.93,144.9,0.04608296]
[1741371737995,42.15437512,144.92,144.9,0.04608296]
[1741371738304,75.15437512,144.91,144.78,3.8241]
[1741371738600,42.15437512,144.87,144.78,3.8241]
[1741371738795,42.15437512,144.9,144.78,3.8241]
[1741371739098,33.0,144.89,144.79,33.0]
[1741371739302,0.04450824,144.85,144.83,0.04991325]
[1741371739492,33.0,144.94,144.83,75.20428837]
[1741371739696,42.15437512,145.11,144.86,42.15437512]
[1741371739697,206.94,145.02,144.86,42.15437512]
[1741371739894,6.896,145.01,144.94,6.8989]
[1741371740094,206.94,145.02,144.91,33.0]
[1741371740400,74.78459876,145.05,144.95,42.15437512]
[1741371740599,0.04863809,144.98,144.95,75.20217522]
[1741371740898,74.78459876,145.05,144.97,6.8974]
[1741371741098,0.05011828,144.98,144.97,6.8974]
[1741371741295,33.0,145.03,144.95,39.8983]
[1741371741500,0.04550746,144.99,144.96,0.05212964]
[1741371741901,0.04550746,144.99,144.96,33.05212964]
[1741371742096,0.04550746,144.99,144.98,6.8973]
[1741371742399,0.04550746,144.99,144.96,33.05212964]
[1741371742601,0.04550746,144.99,144.98,6.8973]
[1741371742794,0.04550746,144.99,144.96,33.05212964]
[1741371742991,0.04550746,144.99,144.96,0.05212964]
[1741371744000,7.46e-06,144.99,144.96,75.20650476]
[1741371744195,74.87849876,145.11,144.97,45.89047512]
[1741371744397,74.87849876,145.11,145.01,42.15437512]
[1741371744605,74.87849876,145.11,145.02,33.0]
[1741371744902,74.87849876,145.11,144.98,3.8873]
[1741371744903,42.15437512,145.1,144.98,36.8873]
[1741371745203,0.04771783,145.05,145.03,0.04870619]
[1741371745406,39.8925,145.09,145.03,6.94360619]
[1741371745705,0.04726793,145.05,145.03,0.04870619]
[1741371746595,0.0939,145.11,145.03,0.04870619]
[1741371746596,33.0,145.11,145.03,0.04870619]
[1741371747198,33.0,145.14,145.03,0.04870619]
[1741371747403,6.8917,145.1,145.02,39.8953]
[1741371747699,52.69259363,145.14,145.02,33.0]
[1741371747999,0.04835625,145.07,145.05,0.04590175]
[1741371748803,42.20273137,145.07,145.05,0.04590175]
[1741371749104,39.8935,145.06,145.05,0.04590175]
[1741371749290,39.8935,145.06,145.05,1.75e-06]
[1741371749603,0.04835625,145.07,144.98,46.04167512]
[1741371749902,33.0,145.09,144.99,32.98]
[1741371750298,33.0,145.09,145.01,42.15437512]
[1741371750601,0.04804356,145.05,145.03,0.04359563]
[1741371750794,206.96,145.15,145.03,33.02359563]
[1741371750996,32.98,145.14,145.03,32.98]
[1741371751191,6.8904,145.13,145.06,6.8931]
[1741371751405,32.98,145.14,145.03,32.98]
[1741371751594,42.15437512,145.13,144.98,3.8873]
[1741371751793,0.04515008,145.07,145.04,0.04622235]
[1741371752391,6.93825008,145.07,145.04,0.04622235]
[1741371752705,42.1995252,145.07,145.04,2.235e-05]
[1741371752899,6.894,145.05,145.04,2.235e-05]
[1741371753204,206.92,145.06,144.92,3.6992]
[1741371753403,42.15437512,145.03,144.92,3.6992]
[1741371753607,32.98,145.02,144.92,3.6992]
[1741371754303,32.98,145.05,144.92,3.6992]
[1741371754507,0.04493243,144.98,144.97,6.8978]
[1741371754706,32.98,145.05,144.96,32.98]
[1741371755806,0.04982517,145.02,144.99,0.0452063]
[1741371756108,124.05720986,145.1,145.0,75.13437512]
[1741371756307,124.05720986,145.1,145.01,3.9422]
[1741371756608,74.78459876,145.1,145.01,3.9422]
[1741371756999,6.8927,145.08,145.04,6.8942]
[1741371757200,74.78459876,145.1,145.04,0.05105902]
[1741371757499,74.78459876,145.1,145.08,6.8923]
[1741371757696,114.37128487,145.11,145.04,32.98]
[1741371757905,114.37128487,145.11,145.08,0.05055586]
[1741371758105,188.14350926,145.12,145.09,6.8918]
[1741371758307,188.14350926,145.12,145.08,0.05055586]
[1741371758607,6.8912,145.11,145.08,0.05055586]
[1741371758810,188.14350926,145.12,145.08,0.05055586]
[1741371759205,6.8912,145.11,145.08,0.05055586]
[1741371759509,32.98,145.13,145.08,0.05055586]
[1741371759711,6.8921,145.09,145.08,0.05055586]
[1741371760199,75.13437512,145.13,145.08,0.05055586]
[1741371760407,32.98,145.13,145.08,0.05055586]
[1741371761612,6.8921,145.09,145.08,0.05055586]
[1741371762404,6.8915,145.11,145.08,0.05055586]
[1741371762606,32.98,145.13,145.08,0.05055586]
[1741371762804,42.15437512,145.16,145.08,0.05055586]
[1741371763006,75.11437512,145.16,145.05,32.96]
[1741371763208,42.15437512,145.16,145.11,0.04626387]
[1741371763510,6.8907,145.12,145.11,0.04626387]
[1741371764411,6.8898,145.14,145.11,0.04626387]
[1741371764613,75.11437512,145.16,145.11,0.04626387]
[1741371764806,42.15437512,145.19,145.11,0.04626387]
[1741371766012,6.8907,145.12,145.11,0.04626387]
[1741371766514,42.15437512,145.1,145.02,3.888]
[1741371767022,42.15437512,145.04,144.92,32.96]
[1741371767207,32.96,145.05,144.95,3.9124]
[1741371767508,193.0,145.11,144.99,0.04714765]
[1741371767714,42.15437512,145.1,145.0,32.96]
[1741371767917,32.96,145.09,145.0,32.96]
[1741371768516,32.96,145.09,145.01,6.8954]
[1741371768812,32.96,145.09,145.03,0.04339349]
[1741371769011,42.15437512,145.07,145.03,0.04339349]
[1741371769409,6.8945,145.04,145.03,0.04339349]
[1741371769606,42.15437512,145.04,144.96,3.7981]
[1741371769913,42.15437512,145.04,144.95,36.8724]
[1741371770313,32.96,145.05,144.93,3.6873]
[1741371770314,42.15437512,145.01,144.93,3.6873]
[1741371770716,75.11437512,145.01,144.93,10.5869]
[1741371771015,0.04945156,144.98,144.96,0.04362234]
[1741371771517,6.8978,144.97,144.96,0.04362234]
[1741371771718,0.04945156,144.98,144.96,0.04362234]
[1741371773415,42.20382668,144.98,144.9,3.8164]
[1741371773715,42.20382668,144.98,144.89,3.6873]
[1741371773912,42.15437512,144.98,144.89,3.6873]
[1741371774321,6.8979,144.97,144.89,3.6873]
[1741371774617,0.05068875,144.96,144.94,0.05187606]
[1741371774818,32.96,145.01,144.94,0.05187606]
[1741371775020,0.04444473,144.96,144.94,0.05187606]
[1741371775219,32.96,145.01,144.94,0.05187606]
[1741371775719,0.0505982,144.99,144.94,0.05187606]
[1741371776315,42.20497332,144.99,144.94,0.05187606]
[1741371776615,6.8987,144.95,144.94,0.05187606]
[1741371777321,0.04771202,144.96,144.94,0.05187606]
[1741371778520,0.04771202,144.96,144.95,6.8987]
[1741371778726,249.03437512,145.05,144.95,6.8987]
[1741371778727,206.88,145.05,144.95,32.96]
[1741371778927,6.8945,145.04,144.95,40.4669]
[1741371779123,113.9157755,145.07,144.95,40.4669]
[1741371779324,75.94385033,145.08,144.95,40.4669]
[1741371779725,0.04959861,145.03,145.0,0.05259227]
[1741371779927,42.15437512,145.01,144.9,191.0]
[1741371780222,42.15437512,145.01,144.9,3.6937]
[1741371780223,32.96,145.0,144.9,3.6937]
[1741371780527,42.15437512,144.95,144.82,126.88130321]
[1741371780724,42.15437512,144.92,144.84,3.6937]
[1741371780927,42.15437512,144.89,144.82,51.76692809]
[1741371781119,42.19819531,144.89,144.82,51.76692809]
[1741371781526,42.15437512,144.83,144.82,26.37373107]
[1741371781727,75.11437512,144.83,144.82,3.107e-05]
[1741371782228,42.15437512,144.86,144.82,3.107e-05]
[1741371782524,0.05059225,144.84,144.82,3.107e-05]
[1741371783529,0.05059225,144.84,144.83,6.9045]
[1741371783728,206.94,144.93,144.83,32.94]
[1741371784025,6.9011,144.91,144.83,39.844]
[1741371784226,249.09437512,144.93,144.83,32.94]
[1741371784627,6.9012,144.9,144.83,39.8442]
[1741371784927,0.05226476,144.89,144.87,0.05255267]
[1741371785324,39.8621,144.88,144.87,0.00196042]
[1741371785928,32.96,144.88,144.87,0.00196042]
[1741371786529,43.3221,144.88,144.87,0.00196042]
[1741371786832,39.8621,144.88,144.87,0.00196042]
[1741371787131,32.96,144.88,144.87,0.00196042]
[1741371787337,0.05226476,144.89,144.87,0.00196042]
[1741371787527,75.94385033,144.99,144.88,6.9021]
[1741371787829,57.72185033,144.99,144.96,42.15437512]
[1741371788023,39.83662583,145.0,144.99,6.8968]
[1741371788232,3.6803,145.14,144.99,191.0]
[1741371788533,356.09534622,145.07,145.06,42.15437512]
[1741371788731,356.09534622,145.07,145.06,82.00787512]
[1741371788932,356.09534622,145.07,145.06,39.8535]
[1741371789234,356.09534622,145.07,145.05,6.94208867]
[1741371789427,356.09534622,145.07,145.05,0.04808867]
[1741371790026,0.04418786,145.08,145.06,68.69501031]
[1741371790326,0.04418786,145.08,145.06,32.30921031]
[1741371790828,0.04418786,145.08,145.06,8.05201031]
[1741371791128,3.48418786,145.08,145.05,32.11705572]
[1741371791329,84.30875024,145.06,145.02,113.5810619]
[1741371791541,6.8959,145.01,145.0,275.08871976]
[1741371791828,39.8359,145.01,145.0,225.35564333]
[1741371792029,39.8359,145.01,145.0,214.53874333]
[1741371792030,43.2759,145.01,145.0,214.53874333]
[1741371792229,36.38,145.01,144.98,36.41068688]
[1741371792432,249.20482448,145.02,144.98,36.41068688]
[1741371792633,32.94,145.01,144.98,36.46270612]
[1741371793234,0.05044936,145.02,144.98,36.46270612]
[1741371793434,32.94,145.12,144.98,111.55708124]
[1741371793745,39.831,145.12,144.98,69.35068688]
[1741371793938,207.0,145.15,144.98,111.505062]
[1741371794137,32.94,145.13,144.98,69.35068688]
[1741371794624,0.05128978,145.06,145.03,0.05071852]
[1741371797032,6.894,145.05,145.03,0.05071852]
[1741371797236,75.09437512,145.05,145.03,0.05071852]
[1741371797435,78.53437512,145.05,144.95,3.7926]
[1741371797639,6.8968,145.0,144.95,3.7926]
[1741371797933,42.15437512,145.02,144.91,32.94]
[1741371798136,42.15437512,145.02,144.92,3.8544]
[1741371798340,32.94,145.01,144.92,3.8544]
[1741371798528,0.04927648,144.98,144.96,0.04680561]
[1741371799033,6.8958,145.02,144.96,0.04680561]
[1741371799338,32.94,145.04,144.96,0.04680561]
[1741371800038,0.04966758,145.01,144.96,0.04680561]
[1741371801634,0.04966758,145.01,144.97,32.94]
[1741371801842,0.04966758,145.01,144.98,3.9139]
[1741371802341,6.8922,145.09,144.98,46.06827512]
[1741371802539,42.15437512,145.11,144.98,46.06827512]
[1741371803236,206.96,145.12,144.98,46.06827512]
[1741371803237,239.9,145.12,144.98,46.06827512]
[1741371803544,0.04403491,145.06,145.03,0.051127]
[1741371803839,6.8939,145.06,144.98,46.06827512]
[1741371804033,0.04457689,145.06,145.03,0.04353715]
[1741371805238,32.96457689,145.06,145.03,0.04353715]
[1741371806334,0.04457689,145.06,145.03,0.04353715]
[1741371806937,0.04457689,145.06,145.03,32.96353715]
[1741371808242,32.92,145.15,145.04,42.15437512]
[1741371808438,6.8908,145.12,145.04,42.15437512]
[1741371808832,32.92,145.17,145.04,42.15437512]
[1741371809143,206.9,145.19,145.04,42.15437512]
[1741371809339,32.92,145.18,145.09,0.0508884]
[1741371809546,32.92,145.18,145.09,32.92]
[1741371809733,32.92,145.18,145.12,1.171e-05]
[1741371809938,42.15437512,145.17,145.06,32.92]
[1741371810242,32.92,145.18,145.07,3.6512]
[1741371810542,6.8926,145.08,145.07,3.6512]
[1741371810840,32.9,145.14,145.07,3.6512]
[1741371811046,32.9,145.17,145.07,3.6512]
[1741371811342,0.0447,145.12,145.09,0.0515063]
[1741371811737,1.1993383,145.24,145.1,32.9]
[1741371811937,127.51260875,145.25,145.11,45.97397512]
[1741371812449,42.15437512,145.22,145.11,3.8196]
[1741371812648,32.9,145.21,145.11,3.8196]
[1741371812845,6.8872,145.2,145.15,0.0511255]
[1741371813043,42.19962208,145.19,145.15,2.55e-05]
[1741371813244,42.15437512,145.16,145.15,2.55e-05]
[1741371813542,81.94317512,145.16,145.15,2.55e-05]
[1741371813748,78.49437512,145.16,145.05,3.8157]
[1741371813945,32.9,145.16,145.05,3.8157]
[1741371814447,42.15437512,145.14,145.01,32.9]
[1741371814845,0.04704863,145.09,145.06,0.04524723]
[1741371815242,6.893,145.07,145.06,4.723e-05]
[1741371817852,0.04704863,145.09,145.06,4.723e-05]
[1741371818452,6.893,145.07,145.06,4.723e-05]
[1741371818644,0.8271,145.07,145.06,4.723e-05]
[1741371818844,0.04704863,145.09,145.06,4.723e-05]
[1741371819253,6.893,145.07,145.06,4.723e-05]
[1741371819858,0.04704863,145.09,145.06,4.723e-05]
[1741371820151,6.893,145.07,145.06,4.723e-05]
[1741371820351,49.04737512,145.07,145.06,4.723e-05]
[1741371820650,49.04737512,145.07,144.91,42.15437512]
[1741371820651,6.8997,144.93,144.91,42.15437512]
[1741371820857,46.48017512,145.07,144.88,42.15437512]
[1741371820858,32.9,145.0,144.88,42.15437512]
[1741371821656,0.0516866,144.95,144.93,0.04664162]
[1741371821850,6.8992,144.94,144.93,0.04664162]
[1741371825652,6.8992,144.94,144.93,4.162e-05]
[1741371826260,6.9049,144.82,144.81,11.3511]
[1741371826452,32.9,144.88,144.77,69.34322197]
[1741371826756,42.15437512,144.87,144.77,80.69432197]
[1741371827053,32.9,144.88,144.77,80.69432197]
[1741371827250,32.9,144.88,144.79,6.9062]
[1741371827446,42.15437512,144.96,144.82,42.15437512]
[1741371827654,206.94,144.97,144.85,42.15437512]
[1741371827655,32.9,144.95,144.85,42.15437512]
[1741371827851,32.9,144.95,144.86,11.554]
[1741371828658,0.05132609,144.92,144.89,0.04373581]
[1741371828861,32.9,145.0,144.89,32.9]
[1741371829055,32.9,145.0,144.9,6.9009]
[1741371829249,42.15437512,145.05,144.91,42.15437512]
[1741371829457,239.88,145.04,144.91,42.15437512]
[1741371829956,0.04774399,144.99,144.96,0.04556114]
[1741371833457,6.94494399,144.99,144.96,0.04556114]
[1741371833857,6.94494399,144.99,144.91,32.9]
[1741371834160,75.05437512,144.98,144.87,32.9]
[1741371834361,82.38217512,144.98,144.87,32.9]
[1741371835061,0.04594109,144.94,144.82,42.01080549]
[1741371835359,32.9,144.93,144.82,49.72430549]
[1741371835565,32.9,144.93,144.83,42.15437512]
[1741371836265,0.04809874,144.89,144.87,0.04559633]
[1741371836969,32.9,144.88,144.82,9.11080549]
[1741371838061,32.9,144.88,144.84,0.05060684]
[1741371838458,0.04809874,144.89,144.84,0.05060684]
[1741371838659,0.04809874,144.89,144.84,7.68880684]
[1741371839059,0.04809874,144.89,144.86,6.9027]
[1741371839256,0.04809874,144.89,144.84,7.68880684]
[1741371839457,0.04809874,144.89,144.84,0.05060684]
[1741371841174,0.04809874,144.89,144.87,42.15437512]
[1741371841464,42.15437512,144.97,144.85,36.5901]
[1741371841970,42.15437512,144.94,144.85,36.5901]
[1741371842170,32.9,144.96,144.87,6.9022]
[1741371842360,32.9,144.96,144.85,36.5901]
[1741371842563,0.04378338,144.93,144.9,0.05023606]
[1741371842761,6.94388338,144.93,144.9,0.05023606]
[1741371842967,0.04378338,144.93,144.9,0.05023606]
[1741371843164,6.9006,144.91,144.9,0.05023606]
[1741371843362,32.92,144.91,144.82,3.8744]
[1741371843664,6.9024,144.88,144.82,3.8744]
[1741371843860,0.8005,144.93,144.82,3.8744]
[1741371844062,32.9,144.94,144.83,32.9]
[1741371844266,42.15437512,144.93,144.83,32.9]
[1741371844465,0.04678905,144.9,144.87,0.04688784]
[1741371844668,193.0,145.03,144.89,42.15437512]
[1741371844669,0.7882,145.03,144.89,42.15437512]
[1741371844868,0.7882,145.03,144.92,42.15437512]
[1741371845170,32.9,145.06,144.93,32.9]
[1741371845370,249.23437512,145.07,144.93,32.9]
[1741371845570,207.08,145.07,144.95,42.15437512]
[1741371845770,0.7882,145.09,144.99,0.0480099]
[1741371845958,0.7882,145.09,144.99,36.8749099]
[1741371846277,3.7955,145.1,144.99,3.9269]
[1741371846465,42.15437512,145.07,144.97,32.9]
[1741371846668,75.05437512,145.07,144.97,32.9]
[1741371847071,0.04651928,145.03,145.01,0.04623644]
[1741371847269,6.8954,145.02,145.01,0.04623644]
[1741371847566,0.04651928,145.03,145.01,0.04623644]
[1741371847968,6.94151928,145.03,145.01,0.04623644]
[1741371848271,0.04651928,145.03,145.01,0.04623644]
[1741371849565,6.8954,145.02,145.01,0.04623644]
[1741371849869,0.04651928,145.03,145.01,0.04623644]
[1741371850063,6.8954,145.02,145.01,3.644e-05]
[1741371850472,10.6385,145.02,145.01,3.644e-05]
[1741371850670,10.6385,145.02,144.84,9.11080549]
[1741371850671,13.793,145.0,144.84,9.11080549]
[1741371850865,42.15437512,144.9,144.84,9.11080549]
[1741371851061,32.9,144.89,144.84,9.11080549]
[1741371851468,207.02,144.92,144.84,9.11080549]
[1741371851868,0.04409029,144.89,144.87,0.04459768]
[1741371853662,32.9,144.97,144.87,32.94459768]
[1741371853864,32.9,144.97,144.87,32.9]
[1741371854064,6.8983,144.96,144.87,75.05437512]
[1741371854275,249.21437512,144.98,144.88,3.9025]
[1741371854569,6.8984,144.96,144.88,3.9025]
[1741371854768,0.04697679,144.93,144.91,0.04932447]
[1741371854964,207.06,144.98,144.91,0.04932447]
[1741371855170,0.04719828,144.93,144.91,0.04932447]
[1741371855478,0.04885085,144.93,144.91,0.04932447]
[1741371855779,6.94865085,144.93,144.91,0.04932447]
[1741371856275,0.04885085,144.93,144.91,0.04932447]
[1741371858672,207.06,144.98,144.91,32.94932447]
[1741371858976,75.05437512,145.04,144.91,32.94932447]
[1741371859179,75.05437512,145.04,144.91,32.9]
[1741371859768,0.05273029,144.99,144.92,42.15437512]
[1741371860090,207.04,145.05,144.96,0.05058204]
[1741371860380,207.04,145.05,144.92,42.15437512]
[1741371860381,207.04,145.05,144.97,32.9]
[1741371861074,207.04,145.05,145.0,0.05192371]
[1741371861571,6.8959,145.01,145.0,0.05192371]
[1741371861773,207.04,145.05,145.0,0.05192371]
[1741371862171,6.8948,145.04,145.0,0.05192371]
[1741371862371,207.04,145.05,145.0,0.05192371]
[1741371862769,6.8959,145.01,145.0,0.05192371]
[1741371863373,42.15437512,145.04,145.0,0.05192371]
[1741371864176,6.8959,145.01,145.0,0.05192371]
[1741371865071,49.05027512,145.01,145.0,2.371e-05]
[1741371865477,42.15437512,145.01,144.93,7.7196]
[1741371865680,42.15437512,144.95,144.89,7.7864]
[1741371865977,75.03437512,144.95,144.89,7.7864]
[1741371866181,75.03437512,144.95,144.87,3.7495]
[1741371866680,0.04375028,144.92,144.9,0.05089167]
[1741371867889,32.9,144.91,144.85,13.02040549]
[1741371868185,32.9,144.91,144.81,182.35734981]
[1741371868186,42.15437512,144.89,144.81,3.6686]
[1741371868892,32.9,144.91,144.81,3.6686]
[1741371869186,0.04659903,144.86,144.84,0.04552357]
[1741371869382,6.94999903,144.86,144.84,0.04552357]
[1741371869574,0.04659903,144.86,144.84,0.04552357]
[1741371869779,45.80767512,144.99,144.84,78.53989869]
[1741371869977,32.88,145.01,144.88,42.15437512]
[1741371869978,6.8978,144.97,144.88,42.15437512]
[1741371870174,32.88,145.01,144.89,40.3456]
[1741371870386,6.8976,144.98,144.89,40.3456]
[1741371870588,249.21437512,145.02,144.89,40.3456]
[1741371870983,0.04887855,144.97,144.94,0.05107841]
[1741371871192,0.04887855,144.97,144.95,32.9]
[1741371871686,207.06,145.02,144.95,32.9]
[1741371872481,6.8946,145.04,144.97,6.8978]
[1741371872789,207.06,145.08,144.99,0.04528257]
[1741371873085,207.06,145.08,145.0,32.88]
[1741371873288,207.06,145.08,145.02,0.05257615]
[1741371873688,117.68093042,145.11,145.02,0.05257615]
[1741371873893,42.15437512,145.11,145.02,0.05257615]
[1741371874090,42.15437512,145.11,145.0,32.88]
[1741371874289,42.15437512,145.11,145.05,0.04669985]
[1741371874893,6.8935,145.06,145.05,0.04669985]
[1741371875393,42.15437512,145.11,145.05,0.04669985]
[1741371875886,6.8935,145.06,145.05,0.04669985]
[1741371878497,207.04,145.14,145.05,0.04669985]
[1741371878703,42.15437512,145.19,145.06,42.15437512]
[1741371878904,42.15437512,145.19,145.08,0.04887795]
[1741371879199,42.15437512,145.19,145.12,0.05220889]
[1741371879603,6.8902,145.13,145.12,0.05220889]
[1741371880305,42.15437512,145.19,145.12,0.05220889]
[1741371880903,6.8902,145.13,145.12,0.05220889]
[1741371881807,210.9833,145.21,145.12,0.05220889]
[1741371881808,249.13437512,145.21,145.12,0.05220889]
[1741371882005,249.13437512,145.21,145.1,32.88]
[1741371882195,206.98,145.21,145.15,0.04687764]
[1741371882600,3.6746,145.23,145.15,0.04687764]
[1741371882795,3.6746,145.23,145.15,3.70837764]
[1741371883296,6.8864,145.22,145.15,3.70837764]
[1741371883495,3.6746,145.23,145.15,3.70837764]
[1741371884407,3.6746,145.23,145.15,10.59757764]
[1741371884608,3.6746,145.23,145.15,3.70837764]
[1741371884797,3.6746,145.23,145.15,0.04687764]
[1741371884798,32.86,145.22,145.15,0.04687764]
[1741371887007,42.15437512,145.21,145.15,0.04687764]
[1741371887707,3.6746,145.23,145.15,0.04687764]
[1741371888307,6.8872,145.2,145.15,0.04687764]
[1741371888602,3.6746,145.23,145.15,0.04687764]
[1741371888808,6.887,145.2,145.15,0.04687764]
[1741371889312,3.6746,145.23,145.15,0.04687764]
[1741371889814,42.15437512,145.16,145.08,3.6615]
[1741371890008,6.891,145.12,145.08,3.6615]
[1741371890212,42.15437512,145.16,145.06,32.84]
[1741371890409,6.892,145.1,145.06,32.84]
[1741371890916,6.94391659,145.09,145.07,0.05093942]
[1741371891107,42.15437512,145.13,145.05,32.84]
[1741371891409,0.05129087,145.09,145.07,0.04942488]
[1741371891713,6.94359087,145.09,145.07,0.04942488]
[1741371891912,0.05129087,145.09,145.07,0.04942488]
[1741371892608,0.05129087,145.09,145.08,32.84]
[1741371892811,3.6327,145.17,145.08,32.84]
[1741371893107,248.95437512,145.18,145.08,32.84]
[1741371893306,248.95437512,145.18,145.09,3.9557]
[1741371893810,6.8896,145.15,145.09,10.8477]
[1741371894114,248.95437512,145.18,145.12,0.04397092]
[1741371894610,206.8,145.18,145.12,0.04397092]
[1741371895113,6.8895,145.15,145.12,0.04397092]
[1741371895311,7.7887,145.22,145.12,32.88397092]
[1741371895515,3.8124,145.22,145.12,32.84]
[1741371895707,6.8887,145.17,145.16,0.05106842]
[1741371895909,3.7403,145.24,145.16,32.89106842]
[1741371896110,6.8875,145.19,145.16,32.89106842]
[1741371896706,3.7403,145.24,145.16,32.89106842]
[1741371897410,6.8883,145.17,145.16,32.89106842]
[1741371897810,6.8883,145.17,145.16,0.05106842]
[1741371898421,6.8883,145.17,145.16,6.842e-05]
[1741371899517,0.04566539,145.18,145.16,6.842e-05]
[1741371900119,6.8883,145.17,145.16,6.842e-05]
[1741371900324,39.7083,145.17,145.16,6.842e-05]
[1741371900522,43.4725,145.17,145.16,6.842e-05]
[1741371901023,50.8628,145.17,145.16,6.842e-05]
[1741371901525,6.8921,145.09,145.06,32.82]
[1741371901824,42.15437512,145.15,145.06,32.82]
[1741371902523,43.9745,145.17,145.06,32.82]
[1741371902722,0.04616131,145.12,145.09,0.04499116]
[1741371903322,206.78,145.25,145.1,74.97437512]
[1741371903523,206.78,145.25,145.13,42.15437512]
[1741371903722,42.15437512,145.24,145.14,36.3831]
[1741371904120,3.3862,145.23,145.14,36.3831]
[1741371904526,3.3862,145.23,145.17,0.05235883]
[1741371904726,6.8878,145.18,145.17,0.05235883]
[1741371905522,6.8878,145.18,145.17,5.883e-05]
[1741371905923,81.86217512,145.18,145.17,5.883e-05]
[1741371906124,85.30217512,145.18,145.17,5.883e-05]
[1741371906322,78.41437512,145.18,145.07,32.82]
[1741371906530,74.97437512,145.18,145.05,3.4624]
[1741371906828,42.15437512,145.12,145.01,36.44322197]
[1741371907025,43.0566,145.11,145.01,36.44322197]
[1741371907427,0.04681939,145.07,145.05,0.04662014]
[1741371907630,3.4609,145.17,145.06,32.82]
[1741371908222,3.4609,145.17,145.06,74.97437512]
[1741371908429,3.4609,145.17,145.07,10.2199]
[1741371908825,3.4609,145.17,145.11,0.04857503]
[1741371909226,206.76,145.26,145.12,42.15437512]
[1741371909532,3.4609,145.24,145.1,32.82]
[1741371909831,42.15437512,145.22,145.17,0.04898091]
[1741371910034,6.8878,145.18,145.17,0.04898091]
[1741371910230,32.82,145.23,145.17,0.04898091]
[1741371910627,6.8878,145.18,145.17,0.04898091]
[1741371910834,32.82,145.23,145.17,0.04898091]
[1741371911020,3.4609,145.24,145.17,0.04898091]
[1741371911328,42.15437512,145.23,145.17,0.04898091]
[1741371911630,32.82,145.22,145.17,0.04898091]
[1741371912030,3.4609,145.24,145.17,0.04898091]
[1741371913333,3.4609,145.24,145.17,6.93708091]
[1741371913738,6.8848,145.25,145.17,0.04898091]
[1741371913930,3.4104,145.29,145.18,49.05407512]
[1741371914141,3.4104,145.29,145.19,32.82]
[1741371914434,45.56477512,145.29,145.22,0.04406864]
[1741371915035,6.8858,145.23,145.22,0.04406864]
[1741371915237,45.56477512,145.29,145.22,0.04406864]
[1741371915438,6.8843,145.26,145.22,0.04406864]
[1741371915633,3.4104,145.29,145.22,0.04406864]
[1741371916438,36.2104,145.29,145.22,0.04406864]
[1741371916830,6.8854,145.23,145.22,6.864e-05]
[1741371917542,36.2104,145.29,145.22,6.864e-05]
[1741371917934,0.04469716,145.27,145.22,6.864e-05]
[1741371918841,6.8854,145.23,145.22,6.864e-05]
[1741371919041,32.8,145.28,145.22,6.864e-05]
[1741371919435,0.05231701,145.24,145.22,6.864e-05]
[1741371920137,42.15437512,145.34,145.23,32.8]
[1741371920336,3.4309,145.36,145.24,3.6179]
[1741371920548,6.882,145.31,145.25,42.15437512]
[1741371920842,36.2309,145.36,145.25,42.15437512]
[1741371921341,42.15437512,145.34,145.29,8.22e-05]
[1741371921744,6.8821,145.3,145.29,8.22e-05]
[1741371925144,10.3322,145.3,145.15,59.6200361]
[1741371925341,42.15437512,145.24,145.15,59.6200361]
[1741371925547,32.78,145.23,145.15,59.6200361]